fUSD/lending_fUSD_20250923
["ID","MTS","AMOUNT","RATE_DAILY","PERIOD"]
[387161481,1758599467109,-400.0,0.0002053,2]
[387161482,1758599467121,-400.0,0.0002053,2]
[387161483,1758599467131,-400.0,0.0002053,2]
[387161484,1758599467141,-292.35044492,0.0002053,2]
[387161485,1758599467150,-400.0,0.0002053,2]
[387161486,1758599467159,-788.66,0.0002053,2]
[387161487,1758599467169,-400.0,0.0002053,2]
[387161488,1758599467179,-400.0,0.0002053,2]
[387161489,1758599467190,-400.0,0.0002053,2]
[387161490,1758599467200,-782.22,0.0002053,2]
[387161491,1758599467210,-400.0,0.0002053,2]
[387161492,1758599467219,-407.39,0.0002053,2]
[387161493,1758599467229,-404.40980454,0.0002053,2]
[387161494,1758599467240,-400.0,0.0002053,2]
[387161495,1758599467249,-400.0,0.0002053,2]
[387161496,1758599467259,-400.0,0.0002053,2]
[387161497,1758599467269,-400.0,0.0002053,2]
[387161498,1758599467278,-400.0,0.0002053,2]
[387161499,1758599467289,-665.54,0.0002053,2]
[387161500,1758599467300,-420.62536698,0.0002053,2]
[387161501,1758599467310,-400.0,0.0002053,2]
[387161502,1758599467319,-400.0,0.0002053,2]
[387161503,1758599467328,-400.0,0.0002053,2]
[387161504,1758599467338,-400.0,0.0002053,2]
[387161505,1758599467347,-510.316603,0.0002053,2]
[387161506,1758599467356,-475.31542166,0.0002053,2]
[387161507,1758599467366,-643.5,0.0002053,2]
[387161508,1758599467375,-400.0,0.0002053,2]
[387161509,1758599467385,-400.0,0.0002053,2]
[387161510,1758599467394,-578.36,0.0002053,2]
[387161511,1758599467403,-400.0,0.0002053,2]
[387161512,1758599467413,-708.62,0.0002053,2]
[387161513,1758599467422,-400.0,0.0002053,2]
[387161514,1758599467432,-400.0,0.0002053,2]
[387161515,1758599467442,-400.0,0.0002053,2]
[387161516,1758599467451,-400.0,0.0002053,2]
[387161517,1758599467461,-639.18,0.0002053,2]
[387161518,1758599467470,-508.39762362,0.0002053,2]
[387161519,1758599467479,-404.88049954,0.0002053,2]
[387161520,1758599467488,-540.94,0.0002053,2]
[387161521,1758599467498,-400.0,0.0002053,2]
[387161522,1758599467507,-400.0,0.0002053,2]
[387161523,1758599467516,-572.8,0.0002053,2]
[387161524,1758599467525,-510.44,0.0002053,2]
[387161525,1758599467534,-400.0,0.0002053,2]
[387161526,1758599467543,-400.0,0.0002053,2]
[387161527,1758599467553,-540.49,0.0002053,2]
[387161528,1758599467562,-400.0,0.0002053,2]
[387161529,1758599467571,-406.66821732,0.0002053,2]
[387161530,1758599467581,-337.31605244,0.0002053,2]
[387161531,1758599467590,-400.0,0.0002053,2]
[387161532,1758599467599,-437.18397526,0.0002053,2]
[387161533,1758599467608,-400.0,0.0002053,2]
[387161534,1758599467617,-400.0,0.0002053,2]
[387161535,1758599467691,-400.0,0.0002053,2]
[387161536,1758599467700,-606.87,0.0002053,2]
[387161537,1758599467709,-1361.87,0.0002053,2]
[387161538,1758599467718,-400.0,0.0002053,2]
[387161539,1758599467728,-1031.45,0.0002053,2]
[387161540,1758599467737,-405.06131539,0.0002053,2]
[387161541,1758599467746,-400.0,0.0002053,2]
[387161542,1758599467755,-400.0,0.0002053,2]
[387161543,1758599467764,-400.0,0.0002053,2]
[387161544,1758599467773,-400.0,0.0002053,2]
[387161545,1758599467783,-346.33152052,0.0002053,2]
[387161546,1758599467793,-2551.63,0.0002053,2]
[387161547,1758599467802,-400.0,0.0002053,2]
[387161548,1758599467812,-465.41,0.0002053,2]
[387161549,1758599467822,-432.15,0.0002053,2]
[387161550,1758599467834,-416.64455392,0.0002053,2]
[387161551,1758599467843,-400.0,0.0002053,2]
[387161552,1758599467853,-463.33,0.0002053,2]
[387161553,1758599467864,-1375.3,0.0002053,2]
[387161554,1758599467873,-400.0,0.0002053,2]
[387161555,1758599467885,-512.51,0.0002053,2]
[387161556,1758599467896,-758.25,0.0002053,2]
[387161557,1758599467906,-400.0,0.0002053,2]
[387161558,1758599467916,-400.0,0.0002053,2]
[387161559,1758599467926,-400.0,0.0002053,2]
[387161560,1758599467935,-400.0,0.0002053,2]
[387161561,1758599467945,-400.0,0.0002053,2]
[387161562,1758599467955,-400.0,0.0002053,2]
[387161563,1758599467965,-400.0,0.0002053,2]
[387161564,1758599467976,-400.0,0.0002053,2]
[387161565,1758599467986,-400.0,0.0002053,2]
[387161566,1758599467996,-400.0,0.0002053,2]
[387161567,1758599468005,-405.29105855,0.0002053,2]
[387161568,1758599468014,-400.0,0.0002053,2]
[387161569,1758599468023,-1206.33,0.0002053,2]
[387161570,1758599468032,-400.0,0.0002053,2]
[387161571,1758599468042,-400.0,0.0002053,2]
[387161572,1758599468052,-400.0,0.0002053,2]
[387161573,1758599468064,-2150.93,0.0002053,2]
[387161574,1758599468074,-440.18,0.0002053,2]
[387161575,1758599468083,-572.11,0.0002053,2]
[387161576,1758599468093,-400.0,0.0002053,2]
[387161577,1758599468102,-400.0,0.0002053,2]
[387161578,1758599468113,-411.22907473,0.0002053,2]
[387161579,1758599468124,-400.0,0.0002053,2]
[387161580,1758599468133,-497.32802439,0.0002053,2]
[387161581,1758599468143,-400.0,0.0002053,2]
[387161582,1758599468152,-985.98,0.0002053,2]
[387161583,1758599468162,-401.95,0.0002053,2]
[387161584,1758599468171,-824.43,0.0002053,2]
[387161585,1758599468180,-400.0,0.0002053,2]
[387161586,1758599468191,-400.0,0.0002053,2]
[387161587,1758599468201,-407.79458002,0.0002053,2]
[387161588,1758599468210,-400.0,0.0002053,2]
[387161589,1758599468219,-408.55,0.0002053,2]
[387161590,1758599468230,-400.0,0.0002053,2]
[387161591,1758599468239,-400.0,0.0002053,2]
[387161592,1758599468248,-594.13,0.0002053,2]
[387161593,1758599468257,-390.44495321,0.0002053,2]
[387161594,1758599468267,-470.99,0.0002053,2]
[387161595,1758599468277,-400.0,0.0002053,2]
[387161596,1758599468287,-400.0,0.0002053,2]
[387161597,1758599468296,-661.14,0.0002053,2]
[387161598,1758599468306,-955.85,0.0002053,2]
[387161599,1758599468315,-400.0,0.0002053,2]
[387161600,1758599468324,-496.76,0.0002053,2]
[387161601,1758599468333,-400.0,0.0002053,2]
[387161602,1758599468342,-179.97986865,0.0002053,2]
[387161603,1758599468351,-984.83,0.0002053,2]
[387161604,1758599468360,-400.0,0.0002053,2]
[387161605,1758599468369,-400.0,0.0002053,2]
[387161606,1758599468379,-630.46,0.0002053,2]
[387161607,1758599468388,-841.77,0.0002053,2]
[387161608,1758599468397,-400.0,0.0002053,2]
[387161609,1758599468406,-400.0,0.0002053,2]
[387161610,1758599468415,-400.0,0.0002053,2]
[387161611,1758599468424,-657.03,0.0002053,2]
[387161612,1758599468433,-400.0,0.0002053,2]
[387161613,1758599468442,-400.0,0.0002053,2]
[387161614,1758599468452,-795.06,0.0002053,2]
[387161615,1758599468461,-656.19,0.0002053,2]
[387161616,1758599468470,-413.66,0.0002053,2]
[387161617,1758599468480,-400.0,0.0002053,2]
[387161618,1758599468489,-1766.09,0.0002053,2]
[387161619,1758599468502,-603.3,0.0002053,2]
[387161620,1758599468511,-400.0,0.0002053,2]
[387161621,1758599468521,-400.0,0.0002053,2]
[387161622,1758599468530,-403.07,0.0002053,2]
[387161623,1758599468539,-1013.14632879,0.0002053,2]
[387161624,1758599468550,-400.0,0.0002053,2]
[387161625,1758599468559,-400.0,0.0002053,2]
[387161626,1758599468568,-539.02,0.0002053,2]
[387161627,1758599468578,-478.59,0.0002053,2]
[387161628,1758599468587,-623.54,0.0002053,2]
[387161629,1758599468596,-727.02,0.0002053,2]
[387161630,1758599468605,-201.96972459,0.0002053,2]
[387161631,1758599468615,-400.0,0.0002053,2]
[387161632,1758599468624,-400.0,0.0002053,2]
[387161633,1758599468633,-400.0,0.0002053,2]
[387161634,1758599468642,-425.68,0.0002053,2]
[387161635,1758599468651,-395.38595847,0.0002053,2]
[387161636,1758599468660,-400.0,0.0002053,2]
[387161637,1758599468669,-400.0,0.0002053,2]
[387161638,1758599468679,-400.0,0.0002053,2]
[387161639,1758599468688,-905.96,0.0002053,2]
[387161640,1758599468697,-400.0,0.0002053,2]
[387161641,1758599468706,-900.82,0.0002053,2]
[387161642,1758599468715,-1292.05,0.0002053,2]
[387161643,1758599468725,-400.0,0.0002053,2]
[387161644,1758599468734,-410.74,0.0002053,2]
[387161645,1758599468744,-400.0,0.0002053,2]
[387161646,1758599468753,-400.0,0.0002053,2]
[387161647,1758599468762,-400.0,0.0002053,2]
[387161648,1758599468771,-206.71770282,0.0002053,2]
[387161649,1758599468780,-400.0,0.0002053,2]
[387161650,1758599468790,-471.49,0.0002053,2]
[387161651,1758599468801,-400.0,0.0002053,2]
[387161652,1758599468810,-400.0,0.0002053,2]
[387161653,1758599468820,-400.0,0.0002053,2]
[387161654,1758599468829,-400.0,0.0002053,2]
[387161655,1758599468838,-400.0,0.0002053,2]
[387161656,1758599468848,-400.0,0.0002053,2]
[387161657,1758599468857,-500.0,0.0002053,2]
[387161658,1758599468866,-811.28,0.0002053,2]
[387161659,1758599468876,-609.51,0.0002053,2]
[387161660,1758599468885,-400.0,0.0002053,2]
[387161661,1758599468894,-487.38,0.0002053,2]
[387161662,1758599468904,-400.0,0.0002053,2]
[387161663,1758599468913,-400.0,0.0002053,2]
[387161664,1758599468922,-400.0,0.0002053,2]
[387161665,1758599468931,-690.14,0.0002053,2]
[387161666,1758599468941,-400.0,0.0002053,2]
[387161667,1758599468950,-400.0,0.0002053,2]
[387161668,1758599468959,-400.0,0.0002053,2]
[387161669,1758599468968,-635.76,0.0002053,2]
[387161670,1758599468978,-400.0,0.0002053,2]
[387161671,1758599468987,-449.64,0.0002053,2]
[387161672,1758599468996,-400.0,0.0002053,2]
[387161673,1758599469006,-699.58,0.0002053,2]
[387161674,1758599469016,-400.0,0.0002053,2]
[387161675,1758599469025,-249.71692723,0.0002053,2]
[387161676,1758599469034,-400.0,0.0002053,2]
[387161677,1758599469044,-400.0,0.0002053,2]
[387161678,1758599469054,-520.49,0.0002053,2]
[387161679,1758599469063,-400.0,0.0002053,2]
[387161680,1758599469072,-400.0,0.0002053,2]
[387161681,1758599469082,-450.7303586,0.0002053,2]
[387161682,1758599469091,-400.0,0.0002053,2]
[387161683,1758599469101,-492.93,0.0002053,2]
[387161684,1758599469111,-406.83408153,0.0002053,2]
[387161685,1758599469123,-577.39,0.0002053,2]
[387161686,1758599469132,-400.0,0.0002053,2]
[387161687,1758599469141,-583.63,0.0002053,2]
[387161688,1758599469151,-609.69,0.0002053,2]
[387161689,1758599469160,-400.0,0.0002053,2]
[387161690,1758599469169,-150.0,0.00020531,2]
[387161691,1758599469179,-500.0,0.00020531,2]
[387161692,1758599469188,-150.0,0.00020531,2]
[387161693,1758599469197,-150.0,0.00020531,2]
[387161694,1758599469207,-500.0,0.00020531,2]
[387161695,1758599469217,-400.0,0.00020531,2]
[387161696,1758599469226,-400.0,0.00020531,2]
[387161697,1758599469235,-207.43479039,0.00020531,2]
[387161698,1758599469245,-400.0,0.00020531,2]
[387161699,1758599469254,-220.62226463,0.00020531,2]
[387161700,1758599469264,-400.0,0.00020531,2]
[387161701,1758599469273,-400.0,0.00020531,2]
[387161702,1758599469283,-336.20442193,0.00020531,2]
[387161703,1758599469292,-400.0,0.00020531,2]
[387161704,1758599469302,-400.0,0.00020531,2]
[387161705,1758599469313,-412.71883023,0.00020531,2]
[387161706,1758599469322,-400.0,0.00020531,2]
[387161707,1758599469331,-400.0,0.00020531,2]
[387161708,1758599469342,-400.0,0.00020531,2]
[387161709,1758599469351,-400.0,0.00020531,2]
[387161710,1758599469360,-400.0,0.00020531,2]
[387161711,1758599469369,-400.0,0.00020531,2]
[387161712,1758599469378,-400.0,0.00020531,2]
[387161713,1758599469389,-400.0,0.00020531,2]
[387161714,1758599469398,-400.0,0.00020531,2]
[387161715,1758599469408,-238.46672364,0.00020531,2]
[387161716,1758599469418,-400.0,0.00020531,2]
[387161717,1758599469428,-400.0,0.00020531,2]
[387161718,1758599469439,-400.0,0.00020531,2]
[387161719,1758599469449,-400.0,0.00020531,2]
[387161720,1758599469458,-400.0,0.00020531,2]
[387161721,1758599469467,-403.08773871,0.00020531,2]
[387161722,1758599469476,-434.8119845,0.00020531,2]
[387161723,1758599469486,-400.0,0.00020531,2]
[387161724,1758599469495,-400.0,0.00020531,2]
[387161725,1758599469504,-400.0,0.00020531,2]
[387161726,1758599469514,-400.0,0.00020531,2]
[387161727,1758599469523,-400.0,0.00020531,2]
[387161728,1758599469531,-400.0,0.00020531,2]
[387161729,1758599469540,-400.0,0.00020531,2]
[387161730,1758599469551,-400.0,0.00020531,2]
[387161731,1758599469560,-400.0,0.00020531,2]
[387161732,1758599469569,-400.0,0.00020531,2]
[387161733,1758599469578,-400.0,0.00020531,2]
[387161734,1758599469587,-400.0,0.00020531,2]
[387161735,1758599469596,-400.0,0.00020531,2]
[387161736,1758599469605,-400.0,0.00020531,2]
[387161737,1758599469615,-400.0,0.00020531,2]
[387161738,1758599469624,-407.06347663,0.00020531,2]
[387161739,1758599469634,-400.0,0.00020531,2]
[387161740,1758599469644,-400.0,0.00020531,2]
[387161741,1758599469653,-400.0,0.00020531,2]
[387161742,1758599469665,-400.0,0.00020531,2]
[387161743,1758599469675,-400.0,0.00020531,2]
[387161744,1758599469685,-400.0,0.00020531,2]
[387161745,1758599469694,-400.0,0.00020531,2]
[387161746,1758599469704,-400.0,0.00020531,2]
[387161747,1758599469714,-405.8165389,0.00020531,2]
[387161748,1758599469724,-400.0,0.00020531,2]
[387161749,1758599469735,-400.0,0.00020531,2]
[387161750,1758599469744,-400.0,0.00020531,2]
[387161751,1758599469754,-211.75801073,0.00020531,2]
[387161752,1758599469763,-234.8628975,0.00020531,2]
[387161753,1758599469773,-400.0,0.00020531,2]
[387161754,1758599469783,-400.0,0.00020531,2]
[387161755,1758599469794,-400.0,0.00020531,2]
[387161756,1758599469808,-400.0,0.00020531,2]
[387161757,1758599469819,-408.0183678,0.00020531,2]
[387161758,1758599469832,-400.0,0.00020531,2]
[387161759,1758599469842,-407.2973093,0.00020531,2]
[387161760,1758599469853,-402.91932093,0.00020531,2]
[387161761,1758599469863,-405.75765886,0.00020531,2]
[387161762,1758599469874,-400.0,0.00020531,2]
[387161763,1758599469885,-400.0,0.00020531,2]
[387161764,1758599469896,-409.16,0.00020531,2]
[387161765,1758599469906,-400.0,0.00020531,2]
[387161766,1758599469917,-400.0,0.00020531,2]
[387161767,1758599469929,-409.3866761,0.00020531,2]
[387161768,1758599469942,-400.0,0.00020531,2]
[387161769,1758599469953,-400.0,0.00020531,2]
[387161770,1758599469964,-404.51288551,0.00020531,2]
[387161771,1758599469975,-400.0,0.00020531,2]
[387161772,1758599469985,-400.0,0.00020531,2]
[387161773,1758599469996,-500.0,0.00020531,2]
[387161774,1758599470006,-500.0,0.00020531,2]
[387161775,1758599470017,-400.0,0.00020531,2]
[387161776,1758599470026,-400.0,0.00020531,2]
[387161777,1758599470037,-400.0,0.00020531,2]
[387161778,1758599470052,-400.0,0.00020531,2]
[387161779,1758599470062,-400.0,0.00020531,2]
[387161780,1758599470072,-400.0,0.00020531,2]
[387161781,1758599470081,-400.0,0.00020531,2]
[387161782,1758599470091,-400.0,0.00020531,2]
[387161783,1758599470101,-400.0,0.00020531,2]
[387161784,1758599470111,-400.0,0.00020531,2]
[387161785,1758599470124,-409.34068212,0.00020531,2]
[387161786,1758599470134,-400.0,0.00020531,2]
[387161787,1758599470144,-400.0,0.00020531,2]
[387161788,1758599470154,-400.0,0.00020531,2]
[387161789,1758599470166,-400.0,0.00020531,2]
[387161790,1758599470176,-400.0,0.00020531,2]
[387161791,1758599470185,-400.0,0.00020531,2]
[387161792,1758599470197,-400.0,0.00020531,2]
[387161793,1758599470206,-494.77,0.00020531,2]
[387161794,1758599470216,-400.0,0.00020531,2]
[387161795,1758599470225,-400.0,0.00020531,2]
[387161796,1758599470235,-400.0,0.00020531,2]
[387161797,1758599470245,-400.0,0.00020531,2]
[387161798,1758599470255,-474.95652849,0.00020531,2]
[387161799,1758599470266,-254.10048547,0.00020531,2]
[387161800,1758599470277,-404.71170332,0.00020531,2]
[387161801,1758599470288,-400.0,0.00020531,2]
[387161802,1758599470302,-400.0,0.00020531,2]
[387161803,1758599470311,-400.0,0.00020531,2]
[387161804,1758599470322,-461.75,0.00020531,2]
[387161805,1758599470332,-400.0,0.00020531,2]
[387161806,1758599470342,-400.0,0.00020531,2]
[387161807,1758599470351,-400.0,0.00020531,2]
[387161808,1758599470362,-400.0,0.00020531,2]
[387161809,1758599470372,-400.0,0.00020531,2]
[387161810,1758599470382,-400.0,0.00020531,2]
[387161811,1758599470393,-400.0,0.00020531,2]
[387161812,1758599470403,-533.26,0.00020531,2]
[387161813,1758599470413,-400.0,0.00020531,2]
[387161814,1758599470423,-400.0,0.00020531,2]
[387161815,1758599470433,-400.0,0.00020531,2]
[387161816,1758599470444,-400.0,0.00020531,2]
[387161817,1758599470454,-506.27,0.00020531,2]
[387161818,1758599470465,-516.01,0.00020531,2]
[387161819,1758599470475,-516.01,0.00020531,2]
[387161820,1758599470485,-172.18514294,0.00020531,2]
[387161821,1758599470495,-400.0,0.00020531,2]
[387161822,1758599470505,-400.0,0.00020531,2]
[387161823,1758599470515,-400.0,0.00020531,2]
[387161824,1758599470525,-619.8,0.00020531,2]
[387161825,1758599470535,-400.0,0.00020531,2]
[387161826,1758599470547,-400.0,0.00020531,2]
[387161827,1758599470556,-400.0,0.00020531,2]
[387161828,1758599470566,-400.0,0.00020531,2]
[387161829,1758599470575,-400.0,0.00020531,2]
[387161830,1758599470585,-517.88689655,0.00020531,2]
[387161831,1758599470595,-400.0,0.00020531,2]
[387161832,1758599470605,-400.0,0.00020531,2]
[387161833,1758599470615,-400.0,0.00020531,2]
[387161834,1758599470624,-400.0,0.00020531,2]
[387161835,1758599470634,-400.0,0.00020531,2]
[387161836,1758599470644,-567.91,0.00020531,2]
[387161837,1758599470653,-452.15,0.00020531,2]
[387161838,1758599470662,-400.0,0.00020531,2]
[387161839,1758599470672,-517.39,0.00020531,2]
[387161840,1758599470682,-400.0,0.00020531,2]
[387161841,1758599470691,-489.18211495,0.00020531,2]
[387161842,1758599470701,-400.0,0.00020531,2]
[387161843,1758599470711,-400.0,0.00020531,2]
[387161844,1758599470721,-400.0,0.00020531,2]
[387161845,1758599470731,-400.0,0.00020531,2]
[387161846,1758599470740,-406.23722213,0.00020531,2]
[387161847,1758599470750,-413.39,0.00020531,2]
[387161848,1758599470760,-400.0,0.00020531,2]
[387161849,1758599470770,-400.0,0.00020531,2]
[387161850,1758599470779,-400.0,0.00020531,2]
[387161851,1758599470789,-400.0,0.00020531,2]
[387161852,1758599470801,-500.0,0.00020531,2]
[387161853,1758599470811,-500.0,0.00020531,2]
[387161854,1758599470820,-400.0,0.00020531,2]
[387161855,1758599470831,-400.0,0.00020531,2]
[387161856,1758599470841,-400.0,0.00020531,2]
[387161857,1758599470851,-400.0,0.00020531,2]
[387161858,1758599470861,-440.34,0.00020531,2]
[387161859,1758599470871,-262.09424258,0.00020531,2]
[387161860,1758599470881,-400.0,0.00020531,2]
[387161861,1758599470891,-465.89053997,0.00020531,2]
[387161862,1758599470901,-400.0,0.00020531,2]
[387161863,1758599470911,-828.72,0.00020531,2]
[387161864,1758599470920,-400.0,0.00020531,2]
[387161865,1758599470932,-535.84,0.00020531,2]
[387161866,1758599470941,-400.0,0.00020531,2]
[387161867,1758599470952,-400.0,0.00020531,2]
[387161868,1758599470962,-430.22,0.00020531,2]
[387161869,1758599470972,-400.0,0.00020531,2]
[387161870,1758599470982,-400.0,0.00020531,2]
[387161871,1758599470991,-232.52590086,0.00020531,2]
[387161872,1758599471001,-400.0,0.00020531,2]
[387161873,1758599471011,-400.0,0.00020531,2]
[387161874,1758599471020,-400.0,0.00020531,2]
[387161875,1758599471030,-400.0,0.00020531,2]
[387161876,1758599471040,-376.00673951,0.00020531,2]
[387161877,1758599471053,-400.0,0.00020531,2]
[387161878,1758599471063,-268.18018891,0.00020531,2]
[387161879,1758599471073,-153.27868507,0.00020531,2]
[387161880,1758599471083,-400.0,0.00020531,2]
[387161881,1758599471093,-400.0,0.00020531,2]
[387161882,1758599471103,-400.0,0.00020531,2]
[387161883,1758599471114,-400.0,0.00020531,2]
[387161884,1758599471124,-503.5,0.00020531,2]
[387161885,1758599471135,-583.8,0.00020531,2]
[387161886,1758599471144,-400.0,0.00020531,2]
[387161887,1758599471154,-400.0,0.00020531,2]
[387161888,1758599471163,-400.0,0.00020531,2]
[387161889,1758599471173,-400.0,0.00020531,2]
[387161890,1758599471183,-400.0,0.00020531,2]
[387161891,1758599471194,-400.0,0.00020531,2]
[387161892,1758599471205,-632.87,0.00020531,2]
[387161893,1758599471214,-400.0,0.00020531,2]
[387161894,1758599471223,-500.0,0.00020531,2]
[387161895,1758599471233,-500.0,0.00020531,2]
[387161896,1758599471242,-400.0,0.00020531,2]
[387161897,1758599471252,-231.81899921,0.00020531,2]
[387161898,1758599471261,-400.0,0.00020531,2]
[387161899,1758599471271,-400.0,0.00020531,2]
[387161900,1758599471280,-400.0,0.00020531,2]
[387161901,1758599471290,-400.0,0.00020531,2]
[387161902,1758599471304,-279.43,0.00020531,2]
[387161903,1758599471313,-400.0,0.00020531,2]
[387161904,1758599471324,-400.0,0.00020531,2]
[387161905,1758599471334,-400.0,0.00020531,2]
[387161906,1758599471344,-400.0,0.00020531,2]
[387161907,1758599471354,-400.0,0.00020531,2]
[387161908,1758599471364,-400.0,0.00020531,2]
[387161909,1758599471374,-400.0,0.00020531,2]
[387161910,1758599471383,-400.0,0.00020531,2]
[387161911,1758599471393,-946.57,0.00020531,2]
[387161912,1758599471403,-405.73,0.00020531,2]
[387161913,1758599471412,-400.0,0.00020531,2]
[387161914,1758599471422,-200.0,0.00020531,2]
[387161915,1758599471431,-400.0,0.00020531,2]
[387161916,1758599471442,-400.0,0.00020531,2]
[387161917,1758599471452,-400.0,0.00020531,2]
[387161918,1758599471461,-400.0,0.00020531,2]
[387161919,1758599471471,-400.0,0.00020531,2]
[387161920,1758599471480,-400.0,0.00020531,2]
[387161921,1758599471490,-400.0,0.00020531,2]
[387161922,1758599471499,-288.10606858,0.00020531,2]
[387161923,1758599471509,-400.0,0.00020531,2]
[387161924,1758599471518,-525.12993401,0.00020531,2]
[387161925,1758599471528,-400.0,0.00020531,2]
[387161926,1758599471538,-400.0,0.00020531,2]
[387161927,1758599471551,-400.0,0.00020531,2]
[387161928,1758599471562,-400.0,0.00020531,2]
[387161929,1758599471571,-400.0,0.00020531,2]
[387161930,1758599471581,-1639.45,0.00020531,2]
[387161931,1758599471591,-400.0,0.00020531,2]
[387161932,1758599471600,-400.0,0.00020531,2]
[387161933,1758599471610,-2055.47,0.00020531,2]
[387161934,1758599471619,-459.9367731,0.00020531,2]
[387161935,1758599471629,-1291.07,0.00020531,2]
[387161936,1758599471639,-400.0,0.00020531,2]
[387161937,1758599471648,-1500.12,0.00020531,2]
[387161938,1758599471658,-400.0,0.00020531,2]
[387161939,1758599471667,-400.0,0.00020531,2]
[387161940,1758599471677,-1217.73,0.00020531,2]
[387161941,1758599471688,-400.0,0.00020531,2]
[387161942,1758599471698,-400.0,0.00020531,2]
[387161943,1758599471708,-400.0,0.00020531,2]
[387161944,1758599471719,-1110.27,0.00020531,2]
[387161945,1758599471728,-400.0,0.00020531,2]
[387161946,1758599471738,-400.0,0.00020531,2]
[387161947,1758599471748,-400.0,0.00020531,2]
[387161948,1758599471757,-400.0,0.00020531,2]
[387161949,1758599471767,-729.86,0.00020531,2]
[387161950,1758599471777,-400.0,0.00020531,2]
[387161951,1758599471786,-400.0,0.00020531,2]
[387161952,1758599471795,-681.6,0.00020531,2]
[387161953,1758599471810,-400.0,0.00020531,2]
[387161954,1758599471819,-400.0,0.00020531,2]
[387161955,1758599471830,-551.01,0.00020531,2]
[387161956,1758599471840,-562.71,0.00020531,2]
[387161957,1758599471850,-400.0,0.00020531,2]
[387161958,1758599471860,-400.0,0.00020531,2]
[387161959,1758599471870,-2433.58,0.00020531,2]
[387161960,1758599471880,-400.0,0.00020531,2]
[387161961,1758599471890,-425.29969817,0.00020531,2]
[387161962,1758599471900,-400.0,0.00020531,2]
[387161963,1758599471911,-3698.27,0.00020531,2]
[387161964,1758599471921,-546.58713734,0.00020531,2]
[387161965,1758599471931,-3927.52,0.00020531,2]
[387161966,1758599471941,-400.0,0.00020531,2]
[387161967,1758599471951,-418.6,0.00020531,2]
[387161968,1758599471962,-1467.03,0.00020531,2]
[387161969,1758599471972,-830.82,0.00020531,2]
[387161970,1758599471982,-400.0,0.00020531,2]
[387161971,1758599471994,-400.0,0.00020531,2]
[387161972,1758599472006,-842.57,0.00020531,2]
[387161973,1758599472016,-400.0,0.00020531,2]
[387161974,1758599472026,-400.0,0.00020531,2]
[387161975,1758599472036,-400.0,0.00020531,2]
[387161976,1758599472047,-393.7573723,0.00020531,2]
[387161977,1758599472059,-407.27,0.00020531,2]
[387161978,1758599472068,-400.0,0.00020531,2]
[387161979,1758599472079,-503.7,0.00020531,2]
[387161980,1758599472303,-452.55,0.00020531,2]